Workbook

Sheet Výkaz peněžních toků
B1: Bankovní výpis
B3: Začátek fiskálního roku: | D3: (Před) zahájením | E3: =UPPER(TEXT(DatumZačátkuFiskálníhoRoku,"mmm")) -> I | F3: =UPPER(TEXT(EOMONTH(DatumZačátkuFiskálníhoRoku,1),"mmm")) -> II | G3: =UPPER(TEXT(EOMONTH(DatumZačátkuFiskálníhoRoku,2),"mmm")) -> III | H3: =UPPER(TEXT(EOMONTH(DatumZačátkuFiskálníhoRoku,3),"mmm")) -> IV | I3: =UPPER(TEXT(EOMONTH(DatumZačátkuFiskálníhoRoku,4),"mmm")) -> V | J3: =UPPER(TEXT(EOMONTH(DatumZačátkuFiskálníhoRoku,5),"mmm")) -> VI | K3: =UPPER(TEXT(EOMONTH(DatumZačátkuFiskálníhoRoku,6),"mmm")) -> VII | L3: =UPPER(TEXT(EOMONTH(DatumZačátkuFiskálníhoRoku,7),"mmm")) -> VIII | M3: =UPPER(TEXT(EOMONTH(DatumZačátkuFiskálníhoRoku,8),"mmm")) -> IX | N3: =UPPER(TEXT(EOMONTH(DatumZačátkuFiskálníhoRoku,9),"mmm")) -> X | O3: =UPPER(TEXT(EOMONTH(DatumZačátkuFiskálníhoRoku,10),"mmm")) -> XI | P3: =UPPER(TEXT(EOMONTH(DatumZačátkuFiskálníhoRoku,11),"mmm")) -> XII | R3: Celkem
B4: 2012-01-05 | D4: EST | E4: =DatumZačátkuFiskálníhoRoku -> 2012-01-05 | F4: =EOMONTH(E4,0)+DAY(DatumZačátkuFiskálníhoRoku) -> 2012-02-05 | G4: =EOMONTH(F4,0)+DAY(DatumZačátkuFiskálníhoRoku) -> 2012-03-05 | H4: =EOMONTH(G4,0)+DAY(DatumZačátkuFiskálníhoRoku) -> 2012-04-05 | I4: =EOMONTH(H4,0)+DAY(DatumZačátkuFiskálníhoRoku) -> 2012-05-05 | J4: =EOMONTH(I4,0)+DAY(DatumZačátkuFiskálníhoRoku) -> 2012-06-05 | K4: =EOMONTH(J4,0)+DAY(DatumZačátkuFiskálníhoRoku) -> 2012-07-05 | L4: =EOMONTH(K4,0)+DAY(DatumZačátkuFiskálníhoRoku) -> 2012-08-05 | M4: =EOMONTH(L4,0)+DAY(DatumZačátkuFiskálníhoRoku) -> 2012-09-05 | N4: =EOMONTH(M4,0)+DAY(DatumZačátkuFiskálníhoRoku) -> 2012-10-05 | O4: =EOMONTH(N4,0)+DAY(DatumZačátkuFiskálníhoRoku) -> 2012-11-05 | P4: =EOMONTH(O4,0)+DAY(DatumZačátkuFiskálníhoRoku) -> 2012-12-05 | R4: Položka EST
B6: Pokladní hotovost (začátek měsíce) | D6: 100 | E6: =D48 -> 100 | F6: =E48 -> -125 | G6: 45 | H6: -1 | I6: 224 | J6: 269 | K6: 269 | L6: 269 | M6: 269 | N6: 269 | O6: 269 | P6: 269 | R6: =P6 -> 269
B8: Příjmové doklady
B9: Prodej za hotové | E9: 125 | F9: 120 | G9: 130 | H9: 100 | R9: =SUM(PříjmovéDoklady[[#This Row],[Období 0]:[Období 12]]) -> 475
B10: Výběry z účtů | H10: 75 | I10: 45 | R10: =SUM(PříjmovéDoklady[[#This Row],[Období 0]:[Období 12]]) -> 120
B11: Půjčka nebo jiná hotovostní injekce | E11: 50 | F11: 50 | G11: 50 | H11: 50 | R11: =SUM(PříjmovéDoklady[[#This Row],[Období 0]:[Období 12]]) -> 200
B12: Celkem | D12: =SUBTOTAL(109,PříjmovéDoklady[Období 0]) -> 0 | E12: =SUBTOTAL(109,PříjmovéDoklady[Období 1]) -> 175 | F12: =SUBTOTAL(109,PříjmovéDoklady[Období 2]) -> 170 | G12: =SUBTOTAL(109,PříjmovéDoklady[Období 3]) -> 180 | H12: =SUBTOTAL(109,PříjmovéDoklady[Období 4]) -> 225 | I12: =SUBTOTAL(109,PříjmovéDoklady[Období 5]) -> 45 | J12: =SUBTOTAL(109,PříjmovéDoklady[Období 6]) -> 0 | K12: =SUBTOTAL(109,PříjmovéDoklady[Období 7]) -> 0 | L12: =SUBTOTAL(109,PříjmovéDoklady[Období 8]) -> 0 | M12: =SUBTOTAL(109,PříjmovéDoklady[Období 9]) -> 0 | N12: =SUBTOTAL(109,PříjmovéDoklady[Období 10]) -> 0 | O12: =SUBTOTAL(109,PříjmovéDoklady[Období 11]) -> 0 | P12: =SUBTOTAL(109,PříjmovéDoklady[Období 12]) -> 0 | R12: =SUBTOTAL(109,PříjmovéDoklady[Celkem]) -> 795
B13: K dispozici celkem (před vydáním) | D13: =D6+SUM(PříjmovéDoklady[Období 0]) -> 100 | E13: =E6+SUM(PříjmovéDoklady[Období 1]) -> 275 | F13: =F6+SUM(PříjmovéDoklady[Období 2]) -> 45 | G13: =G6+SUM(PříjmovéDoklady[Období 3]) -> 225 | H13: =H6+SUM(PříjmovéDoklady[Období 4]) -> 224 | I13: =I6+SUM(PříjmovéDoklady[Období 5]) -> 269 | J13: =J6+SUM(PříjmovéDoklady[Období 6]) -> 269 | K13: =K6+SUM(PříjmovéDoklady[Období 7]) -> 269 | L13: =L6+SUM(PříjmovéDoklady[Období 8]) -> 269 | M13: =M6+SUM(PříjmovéDoklady[Období 9]) -> 269 | N13: =N6+SUM(PříjmovéDoklady[Období 10]) -> 269 | O13: =O6+SUM(PříjmovéDoklady[Období 11]) -> 269 | P13: =P6+SUM(PříjmovéDoklady[Období 12]) -> 269 | R13: =R6+SUM(PříjmovéDoklady[Celkem]) -> 1064
B15: Vydaná hotovost
B16: Nákupy (zboží) | E16: 400 | G16: 226 | R16: =SUM(VydanáHotovost[[#This Row],[Období 0]:[Období 12]]) -> 626
B17: Nákupy (upřesnit) | R17: =SUM(VydanáHotovost[[#This Row],[Období 0]:[Období 12]]) -> 0
B18: Nákupy (upřesnit) | R18: =SUM(VydanáHotovost[[#This Row],[Období 0]:[Období 12]]) -> 0
B19: Hrubé mzdy (přesné množství) | R19: =SUM(VydanáHotovost[[#This Row],[Období 0]:[Období 12]]) -> 0
B20: Výdaje na mzdy (daně atd.) | R20: =SUM(VydanáHotovost[[#This Row],[Období 0]:[Období 12]]) -> 0
B21: Externí služby | R21: =SUM(VydanáHotovost[[#This Row],[Období 0]:[Období 12]]) -> 0
B22: Zásoby (kancelář & operativní) | R22: =SUM(VydanáHotovost[[#This Row],[Období 0]:[Období 12]]) -> 0
B23: Opravy a údržba | R23: =SUM(VydanáHotovost[[#This Row],[Období 0]:[Období 12]]) -> 0
B24: Reklama | R24: =SUM(VydanáHotovost[[#This Row],[Období 0]:[Období 12]]) -> 0
B25: Vozidlo, doručování a cestování | R25: =SUM(VydanáHotovost[[#This Row],[Období 0]:[Období 12]]) -> 0
B26: Účetnictví a právní služby | R26: =SUM(VydanáHotovost[[#This Row],[Období 0]:[Období 12]]) -> 0
B27: Nájemné | R27: =SUM(VydanáHotovost[[#This Row],[Období 0]:[Období 12]]) -> 0
B28: Telefon | R28: =SUM(VydanáHotovost[[#This Row],[Období 0]:[Období 12]]) -> 0
B29: Služby | R29: =SUM(VydanáHotovost[[#This Row],[Období 0]:[Období 12]]) -> 0
B30: Pojištění | R30: =SUM(VydanáHotovost[[#This Row],[Období 0]:[Období 12]]) -> 0
B31: Daně (z nemovitostí apod.) | R31: =SUM(VydanáHotovost[[#This Row],[Období 0]:[Období 12]]) -> 0
B32: Úrok | R32: =SUM(VydanáHotovost[[#This Row],[Období 0]:[Období 12]]) -> 0
B33: Jiné výdaje (upřesnit) | R33: =SUM(VydanáHotovost[[#This Row],[Období 0]:[Období 12]]) -> 0
B34: Jiné (upřesnit) | R34: =SUM(VydanáHotovost[[#This Row],[Období 0]:[Období 12]]) -> 0
B35: Jiné (upřesnit) | R35: =SUM(VydanáHotovost[[#This Row],[Období 0]:[Období 12]]) -> 0
B36: Různé | R36: =SUM(VydanáHotovost[[#This Row],[Období 0]:[Období 12]]) -> 0
B37: Celkem | D37: =SUBTOTAL(109,VydanáHotovost[Období 0]) -> 0 | E37: =SUBTOTAL(109,VydanáHotovost[Období 1]) -> 400 | F37: =SUBTOTAL(109,VydanáHotovost[Období 2]) -> 0 | G37: =SUBTOTAL(109,VydanáHotovost[Období 3]) -> 226 | H37: =SUBTOTAL(109,VydanáHotovost[Období 4]) -> 0 | I37: =SUBTOTAL(109,VydanáHotovost[Období 5]) -> 0 | J37: =SUBTOTAL(109,VydanáHotovost[Období 6]) -> 0 | K37: =SUBTOTAL(109,VydanáHotovost[Období 7]) -> 0 | L37: =SUBTOTAL(109,VydanáHotovost[Období 8]) -> 0 | M37: =SUBTOTAL(109,VydanáHotovost[Období 9]) -> 0 | N37: =SUBTOTAL(109,VydanáHotovost[Období 10]) -> 0 | O37: =SUBTOTAL(109,VydanáHotovost[Období 11]) -> 0 | P37: =SUBTOTAL(109,VydanáHotovost[Období 12]) -> 0 | R37: =SUBTOTAL(109,VydanáHotovost[Celkem]) -> 626
B39: Vydaná hotovost (mimo výsledovku)
B40: Splátky jistiny úvěru | R40: =SUM(VydanáHotovost2[[#This Row],[Období 0]:[Období 12]]) -> 0
B41: Kapitálové nákupy (upřesnit) | R41: =SUM(VydanáHotovost2[[#This Row],[Období 0]:[Období 12]]) -> 0
B42: Jiné počáteční náklady | R42: =SUM(VydanáHotovost2[[#This Row],[Období 0]:[Období 12]]) -> 0
B43: Rezervy a majetek ve svěřenectví | R43: =SUM(VydanáHotovost2[[#This Row],[Období 0]:[Období 12]]) -> 0
B44: Výběr peněz vlastníka | R44: =SUM(VydanáHotovost2[[#This Row],[Období 0]:[Období 12]]) -> 0
B45: Celkem | D45: =SUBTOTAL(109,VydanáHotovost2[Období 0]) -> 0 | E45: =SUBTOTAL(109,VydanáHotovost2[Období 1]) -> 0 | F45: =SUBTOTAL(109,VydanáHotovost2[Období 2]) -> 0 | G45: =SUBTOTAL(109,VydanáHotovost2[Období 3]) -> 0 | H45: =SUBTOTAL(109,VydanáHotovost2[Období 4]) -> 0 | I45: =SUBTOTAL(109,VydanáHotovost2[Období 5]) -> 0 | J45: =SUBTOTAL(109,VydanáHotovost2[Období 6]) -> 0 | K45: =SUBTOTAL(109,VydanáHotovost2[Období 7]) -> 0 | L45: =SUBTOTAL(109,VydanáHotovost2[Období 8]) -> 0 | M45: =SUBTOTAL(109,VydanáHotovost2[Období 9]) -> 0 | N45: =SUBTOTAL(109,VydanáHotovost2[Období 10]) -> 0 | O45: =SUBTOTAL(109,VydanáHotovost2[Období 11]) -> 0 | P45: =SUBTOTAL(109,VydanáHotovost2[Období 12]) -> 0 | R45: =SUBTOTAL(109,VydanáHotovost2[Celkem]) -> 0
B46: Vydaná hotovost celkem | D46: =SUM(VydanáHotovost[Období 0],VydanáHotovost2[Období 0]) -> 0 | E46: =SUM(VydanáHotovost[Období 1],VydanáHotovost2[Období 1]) -> 400 | F46: =SUM(VydanáHotovost[Období 2],VydanáHotovost2[Období 2]) -> 0 | G46: =SUM(VydanáHotovost[Období 3],VydanáHotovost2[Období 3]) -> 226 | H46: =SUM(VydanáHotovost[Období 4],VydanáHotovost2[Období 4]) -> 0 | I46: =SUM(VydanáHotovost[Období 5],VydanáHotovost2[Období 5]) -> 0 | J46: =SUM(VydanáHotovost[Období 6],VydanáHotovost2[Období 6]) -> 0 | K46: =SUM(VydanáHotovost[Období 7],VydanáHotovost2[Období 7]) -> 0 | L46: =SUM(VydanáHotovost[Období 8],VydanáHotovost2[Období 8]) -> 0 | M46: =SUM(VydanáHotovost[Období 9],VydanáHotovost2[Období 9]) -> 0 | N46: =SUM(VydanáHotovost[Období 10],VydanáHotovost2[Období 10]) -> 0 | O46: =SUM(VydanáHotovost[Období 11],VydanáHotovost2[Období 11]) -> 0 | P46: =SUM(VydanáHotovost[Období 12],VydanáHotovost2[Období 12]) -> 0 | R46: =SUM(VydanáHotovost[Celkem],VydanáHotovost2[Celkem]) -> 626
B48: Stav hotovosti (konec měsíce) | D48: =D13-D46 -> 100 | E48: -125 | F48: 45 | G48: -1 | H48: 224 | I48: 269 | J48: 269 | K48: 269 | L48: 269 | M48: 269 | N48: 269 | O48: 269 | P48: 269 | R48: =R13-R46 -> 438
